bitfinex/quotes_SOLUSD_20250624
["timestamp","ask_amount","ask_price","bid_price","bid_amount"]
[1750761041462,25.98639057,143.73,143.66,73.02739227]
[1750761041671,20.86,143.73,143.66,73.02739227]
[1750761042448,25.98702836,143.72,143.66,73.02739227]
[1750761042759,20.86,143.72,143.66,73.02739227]
[1750761044771,20.86,143.73,143.66,73.02739227]
[1750761044977,25.98661998,143.72,143.66,73.02739227]
[1750761045159,20.86,143.72,143.66,73.02739227]
[1750761045362,20.86,143.72,143.66,7.2002]
[1750761045566,5.13265234,143.71,143.66,7.2002]
[1750761045774,20.86,143.72,143.66,7.2002]
[1750761046078,5.13132653,143.71,143.66,7.2002]
[1750761046254,20.86,143.73,143.66,7.2002]
[1750761046455,25.99123779,143.72,143.66,7.2002]
[1750761046672,5.13123779,143.71,143.66,7.2002]
[1750761046877,20.86,143.72,143.66,7.2002]
[1750761047052,5.13119911,143.71,143.66,7.2002]
[1750761047259,20.86,143.72,143.66,7.2002]
[1750761047458,5.13090637,143.71,143.66,7.2002]
[1750761047757,20.86,143.73,143.66,7.2002]
[1750761047974,25.99132625,143.72,143.66,7.2002]
[1750761048277,5.13132625,143.71,143.66,7.2002]
[1750761048579,20.86,143.72,143.66,7.2002]
[1750761048780,5.13070262,143.71,143.66,7.2002]
[1750761048982,20.86,143.73,143.66,7.2002]
[1750761049167,25.99162826,143.72,143.66,7.2002]
[1750761049366,5.13162826,143.71,143.66,7.2002]
[1750761049668,20.86,143.72,143.66,7.2002]
[1750761049854,5.13105543,143.71,143.66,7.2002]
[1750761050176,20.86,143.74,143.66,7.2002]
[1750761050484,5.13116192,143.73,143.66,7.2002]
[1750761050655,146.6,143.75,143.66,7.2002]
[1750761050864,5.13331094,143.74,143.66,7.2002]
[1750761051183,5.13331094,143.73,143.66,7.2002]
[1750761051368,146.6,143.75,143.66,7.2002]
[1750761051567,5.13323322,143.74,143.66,7.2002]
[1750761051768,5.13470512,143.73,143.66,7.2002]
[1750761051968,146.6,143.75,143.66,7.2002]
[1750761052169,5.13541118,143.74,143.66,7.2002]
[1750761052374,5.13539877,143.73,143.66,7.2002]
[1750761052568,146.6,143.75,143.66,7.2002]
[1750761052764,5.13482609,143.74,143.66,7.2002]
[1750761052972,5.13458026,143.73,143.66,7.2002]
[1750761053168,146.6,143.75,143.66,7.2002]
[1750761053382,5.13462831,143.74,143.66,7.2002]
[1750761053577,5.13462831,143.73,143.66,7.2002]
[1750761053762,167.46,143.75,143.66,7.2002]
[1750761054097,5.13521866,143.74,143.66,7.2002]
[1750761054262,20.86,143.72,143.66,7.2002]
[1750761054465,167.46,143.75,143.66,7.2002]
[1750761054770,5.13396277,143.74,143.66,7.2002]
[1750761054971,5.13396277,143.73,143.66,7.2002]
[1750761055172,167.46,143.75,143.66,7.2002]
[1750761055373,5.13386348,143.74,143.66,7.2002]
[1750761055587,5.13386348,143.73,143.66,7.2002]
[1750761055789,167.46,143.75,143.66,7.2002]
[1750761055976,5.13334816,143.74,143.66,7.2002]
[1750761056186,5.13334816,143.73,143.66,7.2002]
[1750761056383,167.46,143.75,143.66,7.2002]
[1750761056688,5.1329958,143.74,143.66,7.2002]
[1750761056887,5.1329958,143.73,143.66,7.2002]
[1750761057197,167.46,143.75,143.66,7.2002]
[1750761057384,25.99328821,143.74,143.66,7.2002]
[1750761057577,5.13138213,143.73,143.66,7.2002]
[1750761057887,5.13138213,143.72,143.66,7.2002]
[1750761058187,20.86,143.73,143.66,7.2002]
[1750761058375,5.13151646,143.72,143.66,7.2002]
[1750761058577,20.86,143.73,143.66,7.2002]
[1750761058776,5.13124977,143.72,143.66,7.2002]
[1750761058989,20.86,143.74,143.66,7.2002]
[1750761059289,25.99157667,143.73,143.66,7.2002]
[1750761059489,5.13157667,143.72,143.66,7.2002]
[1750761059666,20.86,143.73,143.66,7.2002]
[1750761059865,5.13149652,143.72,143.66,7.2002]
[1750761060075,20.86,143.73,143.66,7.2002]
[1750761060292,25.99149168,143.72,143.66,7.2002]
[1750761060467,20.86,143.72,143.66,7.2002]
[1750761060792,5.13108569,143.71,143.66,7.2002]
[1750761060990,20.86,143.72,143.66,7.2002]
[1750761061193,5.13101114,143.71,143.66,7.2002]
[1750761061361,20.86,143.74,143.66,7.2002]
[1750761061566,20.86,143.72,143.66,7.2002]
[1750761061786,5.13078824,143.71,143.66,7.2002]
[1750761061993,20.86,143.72,143.66,7.2002]
[1750761062289,5.13071992,143.71,143.66,7.2002]
[1750761062594,25.99040844,143.7,143.62,7.4403]
[1750761062891,20.86,143.68,143.62,1.1906]
[1750761063087,25.98799867,143.67,143.62,1.1906]
[1750761063290,25.98799867,143.66,143.59,6.2497]
[1750761063477,146.6,143.68,143.59,6.2497]
[1750761063677,5.12762347,143.67,143.59,6.2497]
[1750761063878,5.12762347,143.66,143.59,6.2497]
[1750761064082,146.6,143.68,143.59,6.2497]
[1750761064299,146.6,143.68,143.6,1.1906]
[1750761064810,20.89,143.73,143.6,1.1906]
[1750761064967,5.12771675,143.72,143.6,1.1906]
[1750761065168,5.12771675,143.71,143.6,1.1906]
[1750761065484,5.12771675,143.7,143.6,1.1906]
[1750761065692,20.89,143.73,143.6,1.1906]
[1750761065993,5.12833018,143.72,143.6,1.1906]
[1750761066173,5.12833018,143.71,143.6,1.1906]
[1750761066374,20.89,143.73,143.6,1.1906]
[1750761066670,5.12872034,143.72,143.6,1.1906]
[1750761066870,5.12872034,143.71,143.6,1.1906]
[1750761067190,20.89,143.73,143.6,1.1906]
[1750761067386,5.12796255,143.72,143.6,1.1906]
[1750761067587,5.12796255,143.71,143.6,1.1906]
[1750761067797,5.12796255,143.7,143.6,1.1906]
[1750761067967,20.89,143.73,143.6,1.1906]
[1750761068162,5.12994237,143.72,143.6,1.1906]
[1750761068397,5.12994237,143.71,143.6,1.1906]
[1750761068697,5.1301955,143.7,143.6,1.1906]
[1750761068865,20.89,143.73,143.6,1.1906]
[1750761069065,5.13031687,143.72,143.6,1.1906]
[1750761069291,5.13031687,143.71,143.6,1.1906]
[1750761069466,5.13031687,143.7,143.6,1.1906]
[1750761069668,20.89,143.73,143.6,1.1906]
[1750761069867,5.13116155,143.72,143.6,1.1906]
[1750761070088,5.13116155,143.71,143.6,1.1906]
[1750761070388,154.2306,143.74,143.63,1.1906]
[1750761070389,146.6,143.74,143.63,1.1906]
[1750761070563,146.6,143.74,143.65,1.1906]
[1750761072066,146.6,143.74,143.65,8.76329952]
[1750761072982,5.13726096,143.73,143.65,1.1906]
[1750761073180,146.6,143.74,143.65,1.1906]
[1750761073982,5.1372496,143.73,143.65,1.1906]
[1750761074186,146.6,143.74,143.65,1.1906]
[1750761074393,5.14313842,143.73,143.65,1.1906]
[1750761074592,5.14313842,143.72,143.65,1.1906]
[1750761074783,5.14313842,143.71,143.65,1.1906]
[1750761074983,146.6,143.74,143.65,1.1906]
[1750761075310,5.14421274,143.73,143.65,1.1906]
[1750761075593,5.14421274,143.72,143.65,1.1906]
[1750761075795,5.14421274,143.71,143.65,1.1906]
[1750761075989,146.6,143.73,143.65,1.1906]
[1750761075990,5.14421274,143.7,143.65,1.1906]
[1750761076174,146.6,143.73,143.65,1.1906]
[1750761076376,5.14681706,143.72,143.65,1.1906]
[1750761076594,5.14681706,143.71,143.65,1.1906]
[1750761076797,5.14681706,143.7,143.65,1.1906]
[1750761077001,146.6,143.73,143.65,1.1906]
[1750761077201,5.14695062,143.72,143.65,1.1906]
[1750761077507,5.14695062,143.71,143.65,1.1906]
[1750761077677,5.14695062,143.7,143.65,1.1906]
[1750761077882,167.49,143.73,143.65,1.1906]
[1750761078114,5.14692985,143.72,143.65,1.1906]
[1750761078293,5.14692985,143.71,143.65,1.1906]
[1750761078496,5.14692985,143.7,143.65,1.1906]
[1750761078694,5.14800066,143.69,143.65,1.1906]
[1750761078900,167.49,143.73,143.65,1.1906]
[1750761079098,5.14801258,143.72,143.65,1.1906]
[1750761079300,5.14801258,143.71,143.65,1.1906]
[1750761079613,5.14801258,143.7,143.65,1.1906]
[1750761079815,5.14801258,143.69,143.65,1.1906]
[1750761080017,167.49,143.73,143.65,1.1906]
[1750761080505,5.14582006,143.72,143.65,1.1906]
[1750761080707,5.14582006,143.71,143.65,1.1906]
[1750761080915,5.14582006,143.7,143.65,1.1906]
[1750761081101,5.14666795,143.69,143.65,1.1906]
[1750761081293,167.49,143.73,143.65,1.1906]
[1750761081493,5.14645117,143.72,143.65,1.1906]
[1750761081701,5.14645117,143.71,143.65,1.1906]
[1750761081900,5.14645117,143.7,143.65,1.1906]
[1750761082213,5.14645117,143.69,143.65,1.1906]
[1750761082414,167.49,143.73,143.65,1.1906]
[1750761082617,26.03787849,143.72,143.61,52.03280282]
[1750761082819,5.14787849,143.71,143.61,52.03280282]
[1750761083002,5.14787849,143.7,143.61,52.03280282]
[1750761083203,5.14787849,143.69,143.61,52.03280282]
[1750761083404,5.14787849,143.68,143.61,52.03280282]
[1750761083592,5.14787849,143.67,143.61,52.03280282]
[1750761083791,5.1465916,143.66,143.61,52.03280282]
[1750761084013,5.1465916,143.65,143.61,52.03280282]
[1750761084316,20.89,143.67,143.61,52.03280282]
[1750761084514,5.14651908,143.66,143.61,52.03280282]
[1750761084812,5.14651908,143.65,143.61,52.03280282]
[1750761085117,5.14651908,143.64,143.61,52.03280282]
[1750761085304,20.89,143.67,143.61,52.03280282]
[1750761085493,5.14624479,143.66,143.61,52.03280282]
[1750761085692,5.14624479,143.65,143.61,52.03280282]
[1750761085889,5.14624479,143.64,143.61,52.03280282]
[1750761086094,20.89,143.67,143.61,44.67850282]
[1750761086394,5.14606513,143.66,143.61,44.67850282]
[1750761086595,5.14606513,143.65,143.61,44.67850282]
[1750761086814,20.89,143.67,143.61,44.67850282]
[1750761087019,26.03203162,143.66,143.61,44.67850282]
[1750761087321,5.14154904,143.65,143.61,44.67850282]
[1750761087505,20.89,143.66,143.61,44.67850282]
[1750761087706,5.14152768,143.65,143.61,44.67850282]
[1750761088019,20.89,143.66,143.61,44.67850282]
[1750761088218,5.13851577,143.65,143.61,44.67850282]
[1750761088522,20.89,143.66,143.61,44.67850282]
[1750761088705,5.13851944,143.65,143.61,44.67850282]
[1750761088906,20.89,143.66,143.61,44.67850282]
[1750761089213,5.1379259,143.65,143.61,44.67850282]
[1750761089409,20.89,143.66,143.61,44.67850282]
[1750761089614,5.13733288,143.65,143.61,44.67850282]
[1750761089917,20.89,143.66,143.61,44.67850282]
[1750761090104,5.13733288,143.65,143.61,44.67850282]
[1750761090417,20.89,143.66,143.61,44.67850282]
[1750761090621,5.13508761,143.65,143.61,44.67850282]
[1750761090809,20.89,143.66,143.61,44.67850282]
[1750761091008,5.13325707,143.65,143.61,44.67850282]
[1750761091203,20.89,143.66,143.61,44.67850282]
[1750761091510,26.02314259,143.65,143.61,44.67850282]
[1750761091709,20.89,143.65,143.61,44.67850282]
[1750761092821,20.89,143.66,143.61,44.67850282]
[1750761093022,26.02243789,143.65,143.61,44.67850282]
[1750761093317,20.89,143.65,143.61,44.67850282]
[1750761093518,146.6,143.67,143.61,44.67850282]
[1750761094108,146.6,143.67,143.62,1.1906]
[1750761094296,146.6,143.72,143.63,6.5025]
[1750761094497,26.02024268,143.71,143.63,6.5025]
[1750761094716,5.13024268,143.7,143.63,6.5025]
[1750761094914,20.89,143.71,143.63,6.5025]
[1750761095116,5.12979591,143.7,143.63,6.5025]
[1750761095345,20.89,143.71,143.63,6.5025]
[1750761095516,5.13097569,143.7,143.63,6.5025]
[1750761095714,20.89,143.71,143.63,6.5025]
[1750761095914,5.13130344,143.7,143.63,6.5025]
[1750761096115,20.89,143.71,143.63,6.5025]
[1750761096430,26.0212888,143.7,143.63,6.5025]
[1750761096615,26.02156632,143.69,143.63,6.5025]
[1750761096815,26.02156632,143.68,143.62,1.1906]
[1750761097009,20.89,143.68,143.62,1.1906]
[1750761097931,26.02123911,143.67,143.61,44.67850282]
[1750761098134,5.13123911,143.66,143.59,6.3814]
[1750761098431,20.89,143.67,143.59,6.3814]
[1750761098632,5.12997447,143.66,143.59,6.3814]
[1750761098838,20.89,143.68,143.59,6.3814]
[1750761099013,20.89,143.66,143.59,6.3814]
[1750761099213,26.02035778,143.65,143.59,6.3814]
[1750761099418,5.13035778,143.64,143.59,6.3814]
[1750761099715,20.89,143.67,143.59,6.3814]
[1750761099918,5.1304729,143.66,143.59,6.3814]
[1750761100119,5.1304729,143.65,143.59,6.3814]
[1750761100326,20.89,143.67,143.59,6.3814]
[1750761100520,5.13046597,143.66,143.59,6.3814]
[1750761100712,5.13046597,143.65,143.59,6.3814]
[1750761100912,20.89,143.67,143.59,6.3814]
[1750761101113,5.13032426,143.66,143.59,6.3814]
[1750761101321,20.89,143.67,143.59,6.3814]
[1750761101536,5.13028109,143.66,143.59,6.3814]
[1750761101729,20.89,143.67,143.59,6.3814]
[1750761101917,5.13132145,143.66,143.59,6.3814]
[1750761102116,20.89,143.67,143.59,6.3814]
[1750761102434,5.13137632,143.66,143.59,6.3814]
[1750761102620,20.89,143.67,143.59,6.3814]
[1750761102813,5.13131375,143.66,143.59,6.3814]
[1750761103013,20.89,143.67,143.59,6.3814]
[1750761103214,5.131034,143.66,143.59,6.3814]
[1750761103429,20.89,143.67,143.59,6.3814]
[1750761103630,5.12993001,143.66,143.59,6.3814]
[1750761103832,20.89,143.67,143.59,6.3814]
[1750761104040,5.13011998,143.66,143.59,6.3814]
[1750761104238,20.89,143.67,143.59,6.3814]
[1750761104441,26.01895833,143.66,143.59,6.3814]
[1750761104642,5.12895833,143.65,143.59,6.3814]
[1750761104938,20.89,143.66,143.59,6.3814]
[1750761105141,5.12822171,143.65,143.59,6.3814]
[1750761105342,20.89,143.66,143.59,6.3814]
[1750761105520,5.12852993,143.65,143.59,6.3814]
[1750761105819,20.89,143.66,143.59,6.3814]
[1750761106014,5.1282204,143.65,143.59,6.3814]
[1750761106341,20.89,143.65,143.59,6.3814]
[1750761106736,20.89,143.63,143.55,1.1906]
[1750761106917,5.1271899,143.62,143.55,1.1906]
[1750761107236,20.89,143.63,143.55,1.1906]
[1750761107419,5.12360044,143.62,143.55,1.1906]
[1750761107622,20.89,143.63,143.55,1.1906]
[1750761107822,26.01265643,143.62,143.55,1.1906]
[1750761108022,26.01265643,143.61,143.55,1.1906]
[1750761108222,20.89,143.61,143.55,1.1906]
[1750761108741,20.89,143.61,143.52,1.1906]
[1750761108940,167.49,143.61,143.52,1.1906]
[1750761110245,146.6,143.61,143.52,1.1906]
[1750761110820,146.6,143.61,143.53,6.0622]
[1750761111142,5.5635886,143.67,143.53,6.0622]
[1750761111341,20.89,143.65,143.54,1.1906]
[1750761111639,26.0087465,143.64,143.54,1.1906]
[1750761111945,20.89,143.64,143.54,1.1906]
[1750761112635,20.89,143.66,143.54,1.1906]
[1750761112843,20.89,143.64,143.54,1.1906]
[1750761114143,20.89,143.66,143.54,1.1906]
[1750761114447,20.89,143.64,143.54,1.1906]
[1750761115354,20.89,143.66,143.54,1.1906]
[1750761115649,20.89,143.64,143.54,1.1906]
[1750761116627,20.89,143.66,143.54,1.1906]
[1750761116828,20.89,143.64,143.54,1.1906]
[1750761118531,5.12261475,143.63,143.54,1.1906]
[1750761118727,20.89,143.65,143.54,1.1906]
[1750761118932,26.01261475,143.64,143.54,1.1906]
[1750761119134,5.12261475,143.63,143.54,1.1906]
[1750761119341,26.01261475,143.63,143.54,1.1906]
[1750761119637,20.89,143.63,143.54,1.1906]
[1750761120452,20.89,143.66,143.54,1.1906]
[1750761120656,20.89,143.64,143.54,1.1906]
[1750761120850,26.01424214,143.63,143.54,1.1906]
[1750761121035,20.89,143.63,143.54,1.1906]
[1750761122055,20.89,143.66,143.54,1.1906]
[1750761122254,20.89,143.64,143.54,1.1906]
[1750761123349,20.89,143.63,143.54,1.1906]
[1750761124346,20.89,143.66,143.54,1.1906]
[1750761124549,20.89,143.64,143.54,1.1906]
[1750761124747,26.01909686,143.63,143.54,1.1906]
[1750761125064,20.89,143.63,143.54,1.1906]
[1750761127179,167.49,143.63,143.54,1.1906]
[1750761127340,20.89,143.61,143.54,1.1906]
[1750761128448,20.89,143.62,143.54,1.1906]
[1750761128650,5.1341765,143.61,143.54,1.1906]
[1750761128846,167.49,143.63,143.54,1.1906]
[1750761129048,5.13441275,143.62,143.54,1.1906]
[1750761129239,5.13441275,143.61,143.54,1.1906]
[1750761129439,167.49,143.63,143.54,1.1906]
[1750761129661,5.13674402,143.62,143.54,1.1906]
[1750761129964,167.49,143.63,143.54,1.1906]
[1750761130161,5.13583012,143.62,143.54,1.1906]
[1750761130337,5.13583012,143.61,143.54,1.1906]
[1750761130536,20.89,143.62,143.54,1.1906]
[1750761130762,5.13538966,143.61,143.54,1.1906]
[1750761131065,5.13494022,143.6,143.54,1.1906]
[1750761131261,20.89,143.62,143.54,1.1906]
[1750761131452,20.89,143.6,143.54,1.1906]
[1750761132360,20.89,143.62,143.54,1.1906]
[1750761132559,5.13504259,143.61,143.54,1.1906]
[1750761132767,26.02504259,143.6,143.53,6.0622]
[1750761132944,20.89,143.6,143.53,6.0622]
[1750761133148,26.02339756,143.59,143.53,6.0622]
[1750761133346,20.89,143.59,143.51,4.1906]
[1750761133563,20.89,143.57,143.51,3.0]
[1750761133861,20.89,143.55,143.51,3.0]
[1750761134078,5.13104727,143.54,143.51,3.0]
[1750761134373,146.6,143.55,143.51,3.0]
[1750761141076,20.89,143.55,143.51,3.0]
[1750761141381,20.89,143.53,143.51,3.0]
[1750761141674,20.89,143.57,143.51,3.0]
[1750761141870,26.02252208,143.56,143.51,3.0]
[1750761142174,5.13252208,143.55,143.51,3.0]
[1750761142371,5.13252208,143.54,143.51,3.0]
[1750761142554,20.89,143.56,143.51,3.0]
[1750761142753,20.89,143.54,143.51,3.0]
[1750761143547,169.0498,143.58,143.51,3.0]
[1750761143754,5.13104317,143.57,143.51,3.0]
[1750761143954,5.12621472,143.56,143.51,3.0]
[1750761144150,5.12621472,143.55,143.51,3.0]
[1750761144473,148.1598,143.58,143.51,3.0]
[1750761144788,5.12605726,143.57,143.51,3.0]
[1750761144968,5.12605726,143.56,143.51,3.0]
[1750761145170,5.12605726,143.55,143.51,3.0]
[1750761145378,5.12605726,143.57,143.51,3.0]
[1750761145575,5.12605726,143.56,143.51,3.0]
[1750761145782,5.12605726,143.55,143.51,3.0]
[1750761145972,5.12605726,143.57,143.51,3.0]
[1750761146164,5.12605726,143.56,143.51,3.0]
[1750761146491,5.12605726,143.55,143.51,3.0]
[1750761146678,155.44390364,143.58,143.51,3.0]
[1750761146996,11.67336044,143.57,143.51,3.0]
[1750761147159,5.12763937,143.56,143.51,3.0]
[1750761147362,5.12763937,143.55,143.51,3.0]
[1750761147664,5.12763937,143.54,143.51,3.0]
[1750761149470,146.6,143.55,143.51,3.0]
[1750761149876,6.54572107,143.57,143.51,3.0]
[1750761150268,5.11995187,143.56,143.51,3.0]
[1750761150591,5.11995187,143.55,143.51,3.0]
[1750761150758,5.11995187,143.54,143.51,3.0]
[1750761150961,153.14572107,143.57,143.51,3.0]
[1750761151177,11.41019708,143.56,143.51,3.0]
[1750761151383,5.11906093,143.55,143.51,3.0]
[1750761151583,5.11906093,143.54,143.51,3.0]
[1750761151785,5.11906093,143.53,143.51,3.0]
[1750761152087,152.89113615,143.56,143.51,3.0]
[1750761152088,5.11906093,143.55,143.51,3.0]
[1750761152289,5.11906093,143.54,143.51,3.0]
[1750761152488,5.11906093,143.53,143.51,3.0]
[1750761154094,26.00906093,143.53,143.51,3.0]
[1750761154297,20.89,143.53,143.51,3.0]
[1750761155976,167.49,143.53,143.51,3.0]
[1750761157678,26.00357424,143.52,143.51,3.0]
[1750761157879,172.60357424,143.52,143.51,3.0]
[1750761158785,167.49,143.52,143.51,3.0]
[1750761160504,172.60074719,143.52,143.51,3.0]
[1750761162111,174.10304719,143.52,143.41,1.1906]
[1750761162400,20.89,143.5,143.41,1.1906]
[1750761162599,20.89,143.48,143.41,1.1906]
[1750761163483,146.6,143.49,143.41,1.1906]
[1750761163726,5.10774373,143.48,143.41,1.1906]
[1750761164005,5.10768558,143.48,143.41,1.1906]
[1750761164512,146.6,143.49,143.41,1.1906]
[1750761165187,167.49,143.49,143.4,6.2919]
[1750761165383,5.10418985,143.48,143.4,6.2919]
[1750761165598,146.6,143.49,143.4,6.2919]
[1750761166007,5.10556182,143.48,143.4,6.2919]
[1750761166219,146.6,143.49,143.4,6.2919]
[1750761166510,1.5023,143.52,143.41,1.1906]
[1750761166807,5.10631052,143.51,143.41,1.1906]
[1750761167011,5.10631052,143.52,143.41,1.1906]
[1750761167208,5.10631052,143.54,143.41,1.1906]
[1750761167407,5.10631052,143.53,143.41,1.1906]
[1750761167714,5.10631052,143.52,143.41,1.1906]
[1750761167895,25.99631052,143.54,143.41,1.1906]
[1750761168091,5.10631052,143.53,143.41,1.1906]
[1750761168309,5.10631052,143.52,143.41,1.1906]
[1750761168511,5.10631052,143.53,143.41,1.1906]
[1750761168691,5.10631052,143.52,143.41,1.1906]
[1750761169006,5.10631052,143.51,143.41,1.1906]
[1750761169205,5.10631052,143.54,143.41,1.1906]
[1750761169407,5.10631052,143.53,143.41,1.1906]
[1750761169610,5.10631052,143.52,143.41,1.1906]
[1750761169907,5.10631052,143.51,143.41,1.1906]
[1750761170212,5.10631052,143.54,143.41,1.1906]
[1750761170414,5.10631052,143.53,143.41,1.1906]
[1750761170591,5.10631052,143.52,143.41,1.1906]
[1750761170798,5.10631052,143.51,143.41,1.1906]
[1750761170992,5.10631052,143.54,143.41,1.1906]
[1750761171291,5.10631052,143.53,143.42,6.5118]
[1750761171613,5.10631052,143.52,143.42,6.5118]
[1750761171790,5.10631052,143.51,143.42,6.5118]
[1750761171990,5.10631052,143.54,143.43,1.1906]
[1750761172192,5.10631052,143.53,143.43,1.1906]
[1750761172490,6.38946349,143.55,143.43,1.1906]
[1750761172491,5.121307,143.52,143.43,1.1906]
[1750761172799,6.38946349,143.55,143.43,1.1906]
[1750761172998,5.12211781,143.54,143.43,1.1906]
[1750761173214,5.12211781,143.53,143.43,1.1906]
[1750761173418,5.12211781,143.52,143.43,1.1906]
[1750761173713,6.38946349,143.55,143.43,1.1906]
[1750761173919,5.12203854,143.54,143.43,1.1906]
[1750761174104,5.12203854,143.53,143.43,1.1906]
[1750761174420,5.12203854,143.52,143.44,6.5118]
[1750761174619,6.38946349,143.55,143.45,1.1906]
[1750761174918,5.13017433,143.54,143.45,1.1906]
[1750761175104,6.38946349,143.55,143.45,1.1906]
[1750761175304,5.13094892,143.54,143.45,1.1906]
[1750761175611,6.38946349,143.55,143.45,1.1906]
[1750761176121,5.13018387,143.54,143.45,1.1906]
[1750761176415,6.38946349,143.55,143.45,1.1906]
[1750761176619,5.12813532,143.54,143.45,1.1906]
[1750761176810,5.12813532,143.53,143.45,1.1906]
[1750761176997,6.38946349,143.55,143.45,1.1906]
[1750761177193,5.1287148,143.54,143.45,1.1906]
[1750761177521,5.1287148,143.53,143.45,1.1906]
[1750761177695,5.13451703,143.52,143.45,1.1906]
[1750761177899,6.38946349,143.55,143.45,1.1906]
[1750761178203,5.13465549,143.54,143.45,1.1906]
[1750761178408,5.13465549,143.53,143.45,1.1906]
[1750761178611,5.13465549,143.52,143.45,1.1906]
[1750761178796,6.38946349,143.55,143.45,1.1906]
[1750761178997,5.13463248,143.54,143.45,1.1906]
[1750761179213,5.13463248,143.53,143.45,1.1906]
[1750761179416,6.38946349,143.55,143.45,1.1906]
[1750761179613,5.13546276,143.54,143.45,1.1906]
[1750761179808,5.13546276,143.53,143.45,1.1906]
[1750761180014,6.38946349,143.55,143.46,6.2994]
[1750761180320,5.13635093,143.54,143.46,6.2994]
[1750761180498,6.38946349,143.55,143.46,6.2994]
[1750761180708,5.13691573,143.54,143.46,6.2994]
[1750761180907,146.6,143.57,143.47,1.1906]
[1750761181106,5.13746148,143.56,143.47,1.1906]
[1750761181303,5.13746148,143.55,143.48,6.2994]
[1750761181524,6.31573035,143.61,143.49,1.1906]
[1750761181814,5.13831996,143.6,143.5,6.4692]
[1750761182131,5.13831996,143.59,143.51,1.1906]
[1750761182297,5.13831996,143.58,143.51,1.1906]
[1750761182499,146.6,143.62,143.51,1.1906]
[1750761182701,5.13891079,143.61,143.51,1.1906]
[1750761182901,5.13891079,143.6,143.51,1.1906]
[1750761183107,20.89,143.61,143.51,1.1906]
[1750761183598,167.49,143.61,143.51,1.1906]
[1750761183918,1.5492,143.6,143.51,1.1906]
[1750761184112,20.89,143.59,143.51,1.1906]
[1750761184319,167.49,143.59,143.5,6.4692]
[1750761184535,167.49,143.59,143.47,7.6896]
[1750761185195,20.89,143.57,143.47,7.6896]
[1750761186327,20.89,143.58,143.47,7.6896]
[1750761187629,20.89,143.58,143.47,1.1906]
[1750761188624,20.89,143.58,143.48,6.5063]
[1750761189021,167.49,143.58,143.48,6.5063]
[1750761191110,5.13820739,143.57,143.48,6.5063]
[1750761191407,5.13820739,143.56,143.48,6.5063]
[1750761191609,5.13820739,143.55,143.48,6.5063]
[1750761191932,5.13820739,143.54,143.48,6.5063]
[1750761192124,5.13820739,143.53,143.48,6.5063]
[1750761192326,5.13820739,143.52,143.48,6.5063]
[1750761192633,146.6,143.56,143.48,6.5063]
[1750761192837,5.13753583,143.55,143.48,6.5063]
[1750761193013,5.13753583,143.54,143.48,6.5063]
[1750761193308,5.13753583,143.53,143.48,6.5063]
[1750761193516,5.13753583,143.52,143.48,6.5063]
[1750761193711,146.6,143.56,143.48,6.5063]
[1750761193904,5.13753264,143.55,143.48,6.5063]
[1750761194121,5.13753264,143.54,143.48,6.5063]
[1750761194306,5.13753264,143.53,143.48,6.5063]
[1750761194509,146.6,143.56,143.48,6.5063]
[1750761194730,5.1368617,143.55,143.48,6.5063]
[1750761195036,5.1368617,143.54,143.48,6.5063]
[1750761195220,148.1492,143.6,143.48,6.5063]
[1750761195418,5.13748927,143.59,143.48,6.5063]
[1750761195624,5.13748927,143.58,143.49,1.1906]
[1750761195823,5.13748927,143.57,143.49,1.1906]
[1750761196134,146.6,143.6,143.49,1.1906]
[1750761196318,5.13018493,143.59,143.49,1.1906]